lending/lending_fUSD_20251218
["ID","MTS","AMOUNT","RATE_DAILY","PERIOD"]
[399063943,1766095740200,-153.12045835,0.00016343,2]
[399063944,1766095742915,-346.87954165,0.00016343,2]
[399063945,1766095742946,-13.25166523,0.00016343,2]
[399063946,1766095746465,-223.18062652,0.00016343,2]
[399063947,1766095748951,-240.38946008,0.00016343,2]
[399063948,1766095752142,-23.17824817,0.00016343,2]
[399063949,1766095752177,-141.82959699,0.00016343,2]
[399063950,1766095755346,-225.22908457,0.00016343,2]
[399063951,1766095757872,-132.94131844,0.00016343,2]
[399063952,1766095757898,-41.42177411,0.00016343,2]
[399063953,1766095760418,-294.3508281,0.00016343,2]
[399063954,1766095762479,-160.13120688,0.00016343,2]
[399063955,1766095764117,-4.09619091,0.00016343,2]
[399063956,1766095764147,-199.32357464,0.00016343,2]
[399063957,1766095766851,-226.7319614,0.00016343,2]
[399063958,1766095770918,-73.94446396,0.00016343,2]
[399063959,1766095770946,-191.51783529,0.00016343,2]
[399063960,1766095772181,-266.5374494,0.00016343,2]
[399063961,1766095774317,-41.94471531,0.00016343,2]
[399063962,1766095774343,-217.66582461,0.00016343,2]
[399063963,1766095776985,-282.33417539,0.00016343,2]
[399063964,1766095777013,-17.66582461,0.00016343,2]
[399063965,1766095781837,-206.95970723,0.00016343,2]
[399063966,1766095783516,-275.37446816,0.00016343,2]
[399063967,1766095783545,-344.74496815,0.00016343,2]
[399063968,1766095786325,-155.25503185,0.00016343,2]
[399063969,1766095786353,-13.07203231,0.00016343,2]
[399063970,1766095788545,-225.66926296,0.00016343,2]
[399063971,1766095790120,-261.25870473,0.00016343,2]
[399063972,1766095790147,-4.38807988,0.00016343,2]
[399063973,1766095791664,-300.0,0.00016343,2]
[399063974,1766095794436,-169.86523489,0.00016343,2]
[399063975,1766095796313,-25.74668523,0.00016343,2]
[399063976,1766095796343,-335.55923451,0.00016343,2]
[399063977,1766095798451,-164.44076549,0.00016343,2]
[399063978,1766095798479,-135.55923451,0.00016343,2]
[399063979,1766095801098,-156.42083023,0.00016343,2]
[399063981,1766095804611,-348.29697274,0.00016342,2]
[399063982,1766095807869,-631.4665333,0.00016342,2]
[399063983,1766095810444,-220.23649396,0.00016342,2]
[399063984,1766095810471,-35.07628315,0.00016342,2]
[399063985,1766095812336,-264.92371685,0.00016342,2]
[399063986,1766095812372,-82.53174133,0.00016343,2]
[399063987,1766095814532,-125.48819393,0.00016343,2]
[399063988,1766095814562,-38.37985629,0.00016343,2]
[399063989,1766095816588,-257.81217919,0.00016343,2]
[399063990,1766095818289,-154.15387693,0.00016343,2]
[399063991,1766095818314,-45.33059863,0.00016343,2]
[399064002,1766095831687,-259.39015822,0.00016335,2]
[399064003,1766095831700,-6.45205256,0.00016335,2]
[399064004,1766095831710,-281.13794744,0.00016343,2]
[399064005,1766095831756,-173.53145393,0.00016343,2]
[399064006,1766095831766,-84.34451576,0.00016343,2]
[399064007,1766095831816,-415.65548424,0.00016343,2]
[399064008,1766095831827,-313.85734604,0.00016343,2]
[399064009,1766095831839,-261.14265396,0.00016343,2]
[399064010,1766095831849,-500.0,0.00016343,2]
[399064011,1766095831859,-500.0,0.00016343,2]
[399064012,1766095831871,-475.0,0.00016343,2]
[399064013,1766095831881,-287.0,0.00016343,2]
[399064014,1766095831892,-250.0,0.00016343,2]
[399064015,1766095831902,-300.0,0.00016343,2]
[399064016,1766095831917,-195.0,0.00016343,2]
[399064017,1766095831927,-41436.37138124,0.00016344,2]
[399064018,1766095831940,-3304.16149517,0.00016344,2]
[399064020,1766095831953,-5378.53161582,0.00016344,2]
[399064021,1766095831973,-605.71259571,0.00016344,2]
[399064022,1766095831986,-449.66614174,0.00016344,2]
[399064023,1766095831997,-283568.30235868,0.00016344,2]
[399064025,1766095832009,-20103.47064334,0.00016344,2]
[399064027,1766095832020,-99333.81705679,0.00016344,2]
[399064029,1766095832032,-106181.52850319,0.00016344,2]
[399064032,1766095832044,-1254.41808677,0.00016344,2]
[399064036,1766095832055,-1168.18354245,0.00016344,2]
[399064136,1766095838473,-908.48151348,0.00016344,2]
[399064138,1766095838485,-1436.31215176,0.00016344,2]
[399064140,1766095838497,-517.37415955,0.00016344,2]
[399064143,1766095838508,-13000.0,0.00016344,2]
[399064146,1766095838526,-168561.66516395,0.00016344,2]
[399064147,1766095838535,-500.0,0.00016344,2]
[399064149,1766095838545,-219.46687473,0.00016344,2]
[399064151,1766095838554,-501.65512545,0.00016344,2]
[399064153,1766095838564,-527.78242833,0.00016344,2]
[399064155,1766095838574,-579.48252053,0.00016344,2]
[399064157,1766095838584,-2500.0,0.00016344,2]
[399064159,1766095838594,-5161.18569618,0.00016345,2]
[399064160,1766095838604,-33130.7390191,0.00016345,2]
[399064161,1766095838613,-292.0,0.00016421,2]
[399064162,1766095838623,-216.37831927,0.00016435,2]
[399064163,1766095838633,-151.0,0.00016435,2]
[399064164,1766095838643,-151.0,0.00016435,2]
[399064165,1766095838652,-200.0,0.00016435,2]
[399064166,1766095838661,-151.0,0.00016435,2]
[399064167,1766095838670,-500.0,0.00016435,2]
[399064168,1766095838680,-151.0,0.00016435,2]
[399064169,1766095838689,-500.0,0.00016435,2]
[399064170,1766095838698,-151.0,0.00016435,2]
[399064171,1766095838707,-500.0,0.00016435,2]
[399064172,1766095838716,-151.0,0.00016435,2]
[399064173,1766095838725,-500.0,0.00016435,2]
[399064174,1766095838734,-574.12855637,0.00016435,2]
[399064175,1766095838743,-500.0,0.00016435,2]
[399064176,1766095838752,-151.0,0.00016435,2]
[399064177,1766095838761,-500.0,0.00016435,2]
[399064178,1766095838770,-151.0,0.00016435,2]
[399064179,1766095838779,-500.0,0.00016435,2]
[399064180,1766095838789,-151.0,0.00016435,2]
[399064181,1766095838798,-500.0,0.00016435,2]
[399064182,1766095838808,-151.0,0.00016435,2]
[399064183,1766095838817,-500.0,0.00016435,2]
[399064184,1766095838826,-151.0,0.00016435,2]
[399064185,1766095838836,-500.0,0.00016435,2]
[399064186,1766095838845,-500.0,0.00016435,2]
[399064187,1766095838854,-203.41509018,0.00016435,2]
[399064188,1766095838864,-500.0,0.00016435,2]
[399064189,1766095838874,-500.0,0.00016435,2]
[399064190,1766095838883,-500.0,0.00016435,2]
[399064191,1766095838894,-250.0,0.00016435,2]
[399064192,1766095838904,-500.0,0.00016435,2]
[399064193,1766095838916,-250.0,0.00016435,2]
[399064194,1766095838925,-500.0,0.00016435,2]
[399064195,1766095838935,-500.0,0.00016435,2]
[399064196,1766095838944,-250.0,0.00016435,2]
[399064197,1766095838955,-500.0,0.00016435,2]
[399064198,1766095838965,-500.0,0.00016435,2]
[399064199,1766095838974,-500.0,0.00016435,2]
[399064200,1766095838985,-500.0,0.00016435,2]
[399064201,1766095838995,-250.0,0.00016435,2]
[399064202,1766095839005,-500.0,0.00016435,2]
[399064203,1766095839015,-500.0,0.00016435,2]
[399064204,1766095839025,-250.0,0.00016435,2]
[399064205,1766095839036,-250.0,0.00016435,2]
[399064206,1766095839045,-500.0,0.00016435,2]
[399064207,1766095839055,-250.0,0.00016435,2]
[399064208,1766095839065,-500.0,0.00016435,2]
[399064209,1766095839075,-250.0,0.00016435,2]
[399064210,1766095839086,-500.0,0.00016435,2]
[399064211,1766095839096,-250.0,0.00016435,2]
[399064212,1766095839105,-500.0,0.00016435,2]
[399064213,1766095839115,-250.0,0.00016435,2]
[399064214,1766095839125,-500.0,0.00016435,2]
[399064215,1766095839134,-255.55242947,0.00016435,2]
[399064216,1766095839144,-500.0,0.00016435,2]
[399064217,1766095839154,-250.0,0.00016435,2]
[399064218,1766095839164,-500.0,0.00016435,2]
[399064219,1766095839173,-500.0,0.00016435,2]
[399064220,1766095839183,-500.0,0.00016435,2]
[399064221,1766095839191,-250.0,0.00016435,2]
[399064222,1766095839201,-500.0,0.00016435,2]
[399064223,1766095839210,-250.0,0.00016435,2]
[399064224,1766095839219,-500.0,0.00016435,2]
[399064225,1766095839228,-250.0,0.00016435,2]
[399064226,1766095839237,-500.0,0.00016435,2]
[399064227,1766095839246,-151.0,0.00016435,2]
[399064228,1766095839255,-151.0,0.00016435,2]
[399064229,1766095839264,-500.0,0.00016435,2]
[399064230,1766095839273,-151.0,0.00016435,2]
[399064231,1766095839282,-500.0,0.00016435,2]
[399064232,1766095839291,-151.0,0.00016435,2]
[399064233,1766095839300,-500.0,0.00016435,2]
[399064234,1766095839310,-151.0,0.00016435,2]
[399064235,1766095839319,-500.0,0.00016435,2]
[399064236,1766095839328,-151.0,0.00016435,2]
[399064237,1766095839337,-500.0,0.00016435,2]
[399064238,1766095839346,-151.0,0.00016435,2]
[399064239,1766095839355,-151.0,0.00016435,2]
[399064240,1766095839365,-500.0,0.00016435,2]
[399064241,1766095839374,-151.0,0.00016435,2]
[399064242,1766095839383,-500.0,0.00016435,2]
[399064243,1766095839394,-500.0,0.00016435,2]
[399064244,1766095839404,-151.0,0.00016435,2]
[399064245,1766095839413,-500.0,0.00016435,2]
[399064246,1766095839422,-151.0,0.00016435,2]
[399064247,1766095839432,-300.00000001,0.00016435,2]
[399064248,1766095839444,-500.0,0.00016435,2]
[399064249,1766095839453,-500.0,0.00016435,2]
[399064250,1766095839463,-151.0,0.00016435,2]
[399064251,1766095839472,-500.0,0.00016435,2]
[399064252,1766095839482,-500.0,0.00016435,2]
[399064253,1766095839490,-500.0,0.00016435,2]
[399064254,1766095839499,-500.0,0.00016435,2]
[399064255,1766095839509,-500.0,0.00016435,2]
[399064256,1766095839518,-500.0,0.00016435,2]
[399064257,1766095839527,-579.4579192,0.00016435,2]
[399064258,1766095839536,-250.0,0.00016435,2]
[399064259,1766095839545,-250.0,0.00016435,2]
[399064260,1766095839555,-250.0,0.00016435,2]
[399064261,1766095839564,-582.9934841,0.00016435,2]
[399064262,1766095839573,-500.0,0.00016435,2]
[399064263,1766095839582,-250.0,0.00016435,2]
[399064264,1766095839591,-427.24916276,0.00016435,2]
[399064265,1766095839599,-250.0,0.00016435,2]
[399064266,1766095839609,-500.0,0.00016435,2]
[399064267,1766095839618,-209.40437684,0.00016435,2]
[399064268,1766095839627,-500.0,0.00016435,2]
[399064269,1766095839636,-250.0,0.00016435,2]
[399064270,1766095839645,-250.0,0.00016435,2]
[399064271,1766095839655,-500.0,0.00016435,2]
[399064272,1766095839664,-582.52208254,0.00016435,2]
[399064273,1766095839673,-250.0,0.00016435,2]
[399064274,1766095839682,-250.0,0.00016435,2]
[399064275,1766095839692,-250.0,0.00016435,2]
[399064276,1766095839701,-250.0,0.00016435,2]
[399064277,1766095839711,-500.0,0.00016438,2]
[399064278,1766095839720,-500.0,0.00016438,2]
[399064279,1766095839730,-500.0,0.00016438,2]
[399064280,1766095839740,-500.0,0.00016438,2]
[399064281,1766095839749,-615.05993856,0.00016438,2]
[399064282,1766095839759,-290.56221539,0.00016438,2]
[399064283,1766095839768,-1194.78694617,0.00016443,5]
[399064284,1766095839778,-1000.0,0.00016443,2]
[399064285,1766095839788,-200.0,0.00016443,2]
[399064286,1766095839798,-4698.99875724,0.00016444,2]
[399064287,1766095839807,-500.0,0.00016444,2]
[399064288,1766095839817,-641.1096514,0.00016444,2]
[399064289,1766095839827,-500.0,0.00016444,2]
[399064290,1766095839836,-500.0,0.00016444,2]
[399064291,1766095839846,-500.0,0.00016444,2]
[399064292,1766095839855,-500.0,0.00016444,2]
[399064297,1766095840294,-500.0,0.00016444,2]
[399064298,1766095840306,-500.0,0.00016444,2]
[399064299,1766095840316,-500.0,0.00016444,2]
[399064300,1766095840326,-500.0,0.00016444,2]
[399064301,1766095840336,-500.0,0.00016444,2]
[399064302,1766095840346,-500.0,0.00016444,2]
[399064303,1766095840355,-500.0,0.00016444,2]
[399064305,1766095840364,-500.0,0.00016444,2]
[399064307,1766095840374,-500.0,0.00016444,2]
[399064308,1766095840384,-500.0,0.00016444,2]
[399064310,1766095840393,-500.0,0.00016444,2]
[399064311,1766095840401,-500.0,0.00016444,2]
[399064312,1766095840411,-500.0,0.00016444,2]
[399064313,1766095840419,-500.0,0.00016444,2]
[399064314,1766095840429,-500.0,0.00016444,2]
[399064315,1766095840438,-500.0,0.00016444,2]
[399064316,1766095840447,-500.0,0.00016444,2]
[399064317,1766095840456,-500.0,0.00016444,2]
[399064318,1766095840465,-500.0,0.00016444,2]
[399064319,1766095840475,-500.0,0.00016444,2]
[399064320,1766095840484,-500.0,0.00016444,2]
[399064321,1766095840493,-385.211677,0.00016444,2]
[399064322,1766095840502,-23607.62,0.00016444,2]
[399064323,1766095840511,-9999.99,0.00016444,2]
[399064324,1766095840520,-299.99,0.00016444,4]
[399064325,1766095840529,-13927.33,0.00016444,2]
[399064326,1766095840538,-9999.99,0.00016444,2]
[399064327,1766095840548,-1461.38,0.00016444,2]
[399064328,1766095840557,-2356.92,0.00016444,2]
[399064329,1766095840566,-308.94,0.00016444,2]
[399064330,1766095840575,-9999.99,0.00016444,2]
[399064331,1766095840584,-1175.27,0.00016444,2]
[399064332,1766095840593,-61476.66,0.00016444,2]
[399064333,1766095840602,-173771.28,0.00016444,2]
[399064334,1766095840612,-4999.99,0.00016444,2]
[399064335,1766095840621,-999.99,0.00016444,2]
[399064336,1766095840631,-500.0,0.00016444,2]
[399064337,1766095840640,-500.0,0.00016444,2]
[399064338,1766095840649,-500.0,0.00016444,2]
[399064339,1766095840658,-200.0,0.00016444,2]
[399064340,1766095840668,-1051.33,0.00016444,2]
[399064341,1766095840677,-500.0,0.00016444,2]
[399064342,1766095840686,-500.0,0.00016444,2]
[399064343,1766095840695,-151.0,0.00016444,2]
[399064344,1766095840704,-151.0,0.00016444,2]
[399064345,1766095840714,-500.0,0.00016444,2]
[399064346,1766095840723,-500.0,0.00016444,2]
[399064347,1766095840732,-500.0,0.00016444,2]
[399064348,1766095840741,-500.0,0.00016444,2]
[399064349,1766095840750,-500.0,0.00016444,2]
[399064350,1766095840759,-500.0,0.00016444,2]
[399064351,1766095840768,-500.0,0.00016444,2]
[399064352,1766095840778,-500.0,0.00016444,2]
[399064353,1766095840787,-250.55529058,0.00016444,2]
[399064354,1766095840797,-500.0,0.00016444,2]
[399064355,1766095840806,-500.0,0.00016444,2]
[399064356,1766095840815,-500.0,0.00016444,2]
[399064357,1766095840824,-182.42775107,0.00016444,2]
[399064358,1766095840833,-500.0,0.00016445,2]
[399064359,1766095840842,-500.0,0.00016445,2]
[399064360,1766095840853,-500.0,0.00016445,2]
[399064361,1766095840863,-500.0,0.00016445,2]
[399064362,1766095840873,-500.0,0.00016445,2]
[399064363,1766095840883,-500.0,0.00016445,2]
[399064364,1766095840893,-200.0,0.00016445,2]
[399064365,1766095840903,-150.99,0.00016445,2]
[399064366,1766095840917,-150.99,0.00016445,2]
[399064367,1766095840926,-5428.86,0.00016445,2]
[399064368,1766095840936,-3015.78,0.00016445,2]
[399064369,1766095840946,-1000.0,0.00016454,2]
[399064370,1766095840956,-2556.68,0.00016464,2]
[399064371,1766095840966,-29999.99,0.00016464,2]
[399064372,1766095840976,-3676.63,0.00016464,2]
[399064373,1766095840988,-9999.99,0.00016464,2]
[399064374,1766095840997,-500.0,0.00016503,2]
[399064375,1766095841008,-500.0,0.00016503,2]
[399064376,1766095841018,-292.0,0.00016533,2]
[399064377,1766095841029,-466.20015622,0.00016553,2]
[399064378,1766095841040,-500.0,0.00016553,2]
[399064379,1766095841052,-500.0,0.00016553,2]
[399064380,1766095841063,-286.90864955,0.00016553,2]
[399064381,1766095841074,-500.0,0.00016553,2]
[399064382,1766095841083,-500.0,0.00016553,2]
[399064383,1766095841093,-500.0,0.00016553,2]
[399064384,1766095841102,-500.0,0.00016553,2]
[399064385,1766095841111,-500.0,0.00016554,2]
[399064386,1766095841121,-500.0,0.00016554,2]
[399064387,1766095841130,-500.0,0.00016554,2]
[399064388,1766095841139,-489.413,0.00016554,2]
[399064389,1766095841148,-500.0,0.00016554,2]
[399064390,1766095841157,-504.44339488,0.00016554,2]
[399064391,1766095841167,-285.20294484,0.00016554,2]
[399064392,1766095841176,-500.0,0.00016554,2]
[399064393,1766095841185,-500.0,0.00016554,2]
[399064394,1766095841194,-500.0,0.00016554,2]
[399064395,1766095841203,-500.0,0.00016554,2]
[399064396,1766095841213,-265.84221078,0.00016577,2]
[399064397,1766095841222,-292.0,0.000166,2]
[399064398,1766095841232,-540.0,0.00016601,2]
[399064399,1766095841243,-457.0,0.00016601,2]
[399064400,1766095841254,-200.0,0.00016609,2]
[399064401,1766095841264,-326.0,0.00016617,2]
[399064402,1766095841274,-292.0,0.00016631,2]
[399064403,1766095841284,-1143.0,0.00016634,2]
[399064404,1766095841293,-206.0,0.00016635,2]
[399064405,1766095841302,-256.0,0.0001665,2]
[399064406,1766095841312,-548.0,0.00016667,2]
[399064407,1766095841322,-426.0,0.00016668,2]
[399064408,1766095841331,-1000.0,0.0001667,2]
[399064409,1766095841340,-1000.0,0.00016672,2]
[399064410,1766095841350,-1000.0,0.00016672,2]
[399064411,1766095841359,-1000.0,0.00016672,2]
[399064412,1766095841368,-1000.0,0.00016678,2]
[399064413,1766095841379,-1000.0,0.00016681,2]
[399064414,1766095841389,-292.0,0.00016682,2]
[399064415,1766095841399,-460.0,0.00016684,2]
[399064416,1766095841408,-1000.0,0.00016686,2]
[399064417,1766095841418,-1000.0,0.00016687,2]
[399064418,1766095841427,-1000.0,0.00016692,2]
[399064419,1766095841436,-1000.0,0.00016693,2]
[399064420,1766095841445,-1000.0,0.00016694,2]
[399064421,1766095841455,-1000.0,0.00016695,2]
[399064422,1766095841464,-1000.0,0.000167,2]
[399064423,1766095841474,-1094.0,0.00016702,2]
[399064424,1766095841483,-1000.0,0.00016703,2]
[399064425,1766095841493,-1000.0,0.00016703,2]
[399064426,1766095841502,-1000.0,0.00016705,2]
[399064427,1766095841511,-1000.0,0.00016707,2]
[399064428,1766095841520,-1000.0,0.00016709,2]
[399064429,1766095841530,-1000.0,0.00016709,2]
[399064430,1766095841539,-1000.0,0.00016712,2]
[399064431,1766095841547,-1000.0,0.00016714,2]
[399064432,1766095841556,-4982.0,0.00016715,2]
[399064433,1766095841565,-1000.0,0.00016716,2]
[399064434,1766095841575,-166.0,0.00016717,2]
[399064435,1766095841583,-1051.33,0.00016718,2]
[399064436,1766095841592,-996.5,0.00016718,2]
[399064437,1766095841601,-1000.0,0.00016722,2]
[399064438,1766095841610,-1000.0,0.00016724,2]
[399064439,1766095841619,-1000.0,0.00016731,2]
[399064440,1766095841629,-1000.0,0.00016731,2]
[399064441,1766095841638,-1971.0,0.00016735,2]
[399064442,1766095841648,-1003.5,0.00016735,2]
[399064443,1766095841657,-1000.0,0.00016735,2]
[399064444,1766095841666,-1000.0,0.00016735,2]
[399064445,1766095841675,-1000.0,0.00016736,2]
[399064446,1766095841684,-1000.0,0.00016736,2]
[399064447,1766095841693,-150.0,0.00016737,2]
[399064448,1766095841702,-150.0,0.0001674,2]
[399064449,1766095841711,-1441.457,0.00016741,2]
[399064450,1766095841720,-1000.0,0.00016743,2]
[399064451,1766095841729,-150.0,0.00016744,2]
[399064452,1766095841738,-1000.0,0.00016749,2]
[399064453,1766095841748,-386.0,0.0001675,2]
[399064454,1766095841757,-1000.0,0.00016752,2]
[399064455,1766095841766,-292.0,0.00016753,2]
[399064456,1766095841775,-150.0,0.00016754,2]
[399064457,1766095841784,-1000.0,0.00016756,2]
[399064458,1766095841793,-1000.0,0.00016758,2]
[399064459,1766095841802,-1000.0,0.00016759,2]
[399064460,1766095841811,-150.0,0.00016762,2]
[399064461,1766095841820,-150.0,0.00016765,2]
[399064462,1766095841830,-150.0,0.00016767,2]
[399064463,1766095841839,-788.0,0.00016768,2]
[399064464,1766095841849,-200.0,0.00016776,2]
[399064465,1766095841858,-150.0,0.00016784,2]
[399064466,1766095841867,-1000.0,0.00016787,2]
[399064467,1766095841876,-1000.0,0.00016789,2]
[399064468,1766095841886,-150.0,0.00016793,2]
[399064469,1766095841895,-1000.0,0.00016794,2]
[399064470,1766095841904,-1000.0,0.00016799,2]
[399064471,1766095841918,-1000.0,0.00016799,2]
[399064472,1766095841927,-1000.0,0.000168,2]
[399064473,1766095841936,-1685.0,0.00016801,2]
[399064474,1766095841946,-150.0,0.00016801,2]
[399064475,1766095841956,-150.0,0.00016802,2]
[399064476,1766095841966,-1000.0,0.00016804,2]
[399064477,1766095841975,-1000.0,0.00016806,2]
[399064478,1766095841985,-1000.0,0.00016806,2]
[399064479,1766095841995,-1000.0,0.00016812,2]
[399064480,1766095842005,-1000.0,0.00016819,2]
[399064481,1766095842014,-1033.52164354,0.00016819,2]
[399064482,1766095842023,-292.0,0.00016822,2]
[399064483,1766095842033,-150.0,0.00016825,2]
[399064484,1766095842042,-1000.0,0.00016825,2]
[399064485,1766095842052,-1000.0,0.00016827,2]
[399064486,1766095842062,-1000.0,0.00016832,2]
[399064487,1766095842071,-1894.0,0.00016834,2]
[399064488,1766095842081,-150.0,0.00016835,2]
[399064489,1766095842090,-1000.0,0.00016835,2]
[399064490,1766095842100,-1000.0,0.00016836,2]
[399064491,1766095842110,-1000.0,0.00016841,2]
[399064492,1766095842120,-150.0,0.00016842,2]
[399064493,1766095842130,-150.0,0.00016843,2]
[399064494,1766095842139,-292.0,0.00016848,2]
[399064495,1766095842149,-1000.0,0.00016848,2]
[399064496,1766095842159,-1000.0,0.00016849,2]
[399064497,1766095842168,-1000.0,0.0001685,2]
[399064498,1766095842178,-150.0,0.00016852,2]
[399064499,1766095842188,-1000.0,0.00016852,2]
[399064500,1766095842197,-262.62058036,0.00016853,2]
[399064501,1766095842208,-150.0,0.00016858,2]
[399064502,1766095842217,-150.0,0.00016859,2]
[399064503,1766095842227,-500.0,0.00016863,2]
[399064504,1766095842237,-414.818323,0.00016863,2]
[399064505,1766095842247,-200.0,0.00016863,2]
[399064506,1766095842257,-500.0,0.00016863,2]
[399064507,1766095842266,-500.0,0.00016863,2]
[399064508,1766095842276,-155.58129497,0.00016863,2]
[399064509,1766095842286,-200.0,0.00016864,2]
[399064510,1766095842296,-1000.0,0.00016868,2]
[399064511,1766095842305,-1000.0,0.00016872,2]
[399064512,1766095842315,-1000.0,0.00016874,2]
[399064513,1766095842326,-292.0,0.0001688,2]
[399064514,1766095842335,-1000.0,0.00016882,2]
[399064515,1766095842345,-1000.0,0.00016883,2]
[399064516,1766095842356,-1000.0,0.00016883,2]
[399064517,1766095842365,-150.0,0.00016886,2]
[399064518,1766095842375,-1000.0,0.00016887,2]
[399064519,1766095842384,-150.0,0.0001689,2]
[399064520,1766095842394,-1000.0,0.0001689,2]
[399064521,1766095842404,-1000.0,0.0001689,2]
[399064522,1766095842413,-150.0,0.00016891,2]
[399064523,1766095842423,-1000.0,0.00016892,2]
[399064524,1766095842433,-150.0,0.00016896,2]
[399064525,1766095842442,-1000.0,0.00016896,2]
[399064526,1766095842452,-211.9059115,0.00016899,2]
[399064527,1766095842461,-1000.0,0.000169,2]
[399064528,1766095842470,-335.70294944,0.000169,2]
[399064529,1766095842479,-1000.0,0.000169,2]
[399064530,1766095842489,-382.7586222,0.000169,2]
[399064531,1766095842498,-150.0,0.00016901,2]
[399064532,1766095842508,-1000.0,0.00016904,2]
[399064533,1766095842517,-150.0,0.00016905,2]
[399064534,1766095842526,-292.0,0.00016916,2]
[399064535,1766095842536,-1000.0,0.00016918,2]
[399064536,1766095842546,-500.0,0.00016921,2]
[399064537,1766095842555,-171.44,0.00016921,2]
[399064538,1766095842564,-487.7368289,0.00016921,2]
[399064539,1766095842573,-1000.0,0.00016923,2]
[399064540,1766095842582,-150.0,0.00016924,2]
[399064541,1766095842591,-1000.0,0.00016924,2]
[399064542,1766095842601,-150.0,0.00016925,2]
[399064544,1766095842610,-1000.0,0.00016925,2]
[399064546,1766095842619,-1000.0,0.00016927,2]
[399064549,1766095842629,-150.0,0.00016931,2]
[399064551,1766095842639,-1000.0,0.00016932,2]
[399064553,1766095842648,-1000.0,0.00016932,2]
[399064554,1766095842658,-1000.0,0.00016934,2]
[399064555,1766095842667,-150.0,0.00016936,2]
[399064556,1766095842677,-1000.0,0.00016937,2]
[399064557,1766095842687,-292.0,0.00016938,2]
[399064558,1766095842696,-1000.0,0.0001694,2]
[399064559,1766095842706,-200.0,0.00016943,2]
[399064560,1766095842715,-150.0,0.00016953,2]
[399064561,1766095842725,-1000.0,0.00016953,2]
[399064562,1766095842734,-1000.0,0.00016954,2]
[399064563,1766095842744,-150.0,0.00016966,2]
[399064564,1766095842753,-150.0,0.00016968,2]
[399064565,1766095842762,-150.0,0.00016969,2]
[399064566,1766095842772,-150.0,0.00016973,2]
[399064567,1766095842781,-150.0,0.00016982,2]
[399064568,1766095842790,-200.0,0.00016983,2]
[399064569,1766095842799,-500.0,0.00016983,2]
[399064570,1766095842808,-200.0,0.00016983,2]
[399064571,1766095842819,-595.37131296,0.00016983,2]
[399064572,1766095842828,-151.0,0.00016983,2]
[399064573,1766095842838,-217.15233878,0.00016983,2]
[399064574,1766095842848,-132436.23,0.00016986,2]
[399064575,1766095842857,-572.06596906,0.00016989,2]
[399064576,1766095842867,-592.56016553,0.00016989,2]
[399064577,1766095842876,-500.0,0.00016989,2]
[399064578,1766095842886,-500.0,0.00016989,2]
[399064579,1766095842896,-500.0,0.00016989,2]
[399064580,1766095842906,-271.06682202,0.00016989,2]
[399064581,1766095842919,-500.0,0.00016989,2]
[399064582,1766095842930,-500.0,0.00016989,2]
[399064583,1766095842940,-1051.33,0.00016992,2]
[399064584,1766095842950,-150.0,0.00016992,2]
[399064585,1766095842961,-2000.0,0.00016997,2]
[399064586,1766095842970,-500.0,0.00016997,2]